[Event "GER-ch Youth-U14 2022"]
[Site "Willingen"]
[Date "2022.06.10"]
[Round "8.16"]
[White "Jahnz, Laurin"]
[Black "Eichhorn, Valentin"]
[Result "1-0"]
[ECO "B40"]
[WhiteElo "1681"]
[BlackElo "1565"]
[Annotator "NA RC COMBH"]
[PlyCount "103"]
[EventDate "2022.06.05"]
[EventType "swiss"]
[EventRounds "9"]
[EventCountry "GER"]
[SourceTitle "playchess.com"]
[Source "ChessBase"]
[SourceQuality "1"]
[TimeControl "40/4500+30:900+30"]

1. e4 {[%emt 0:00:00]} c5 {[%emt 0:00:00]} 2. Nf3 {[%emt 0:00:00]} e6 {[%emt 0:00:00]} 3. c3 {[%emt 0:00:00]} d5 {[%emt 0:00:00]} 4. exd5 {[%emt 0:00:00]} Qxd5 {[%emt 0:00:00]} 5. d4 {[%emt 0:00:00]} Nc6 {[%emt 0:00:00]} 6. Na3 {[%emt 0:00:00]} a6 {[%emt 0:00:00]} 7. Nc4 {[%emt 0:00:00]} Qd8 {[%emt 0:00:00]} 8. Be3 {[%emt 0:00:00]} cxd4 {[%emt 0:00:00]} 9. Nxd4 {[%emt 0:00:00]} Nxd4 {[%emt 0:00:00]} 10. Qxd4 {[%emt 0:00:00]} Qxd4 {[%emt 0:01:08]} 11. Bxd4 {[%emt 0:00:00]} b5 {[%emt 0:01:54]} 12. Nb6 {[%emt 0:00:00]} Rb8 {[%emt 0:00:14]} 13. Nxc8 {[%emt 0:00:00]} Rxc8 {[%emt 0:00:10]} 14. a4 {[%emt 0:00:00]} Rb8 {[%emt 0:04:55]} 15. Be5 {[%emt 0:01:15]} Rb7 {[%emt 0:01:31]} 16. axb5 {[%emt 0:00:21]} axb5 {[%emt 0:00:05]} 17. Ra8+ {[%emt 0:00:12]} Ke7 {[%emt 0:00:05]} 18. Bd4 {[%emt 0:00:03]} Nf6 {[%emt 0:13:30]} 19. Bc5+ {[%emt 0:03:18]} Kd7 {[%emt 0:00:06]} 20. Rxf8 {[%emt 0:00:10]} Rxf8 {[%emt 0:00:05]} 21. Bxf8 {[%emt 0:00:03]} g6 {[%emt 0:00:17]} 22. Be2 {[%emt 0:00:39]} Ke8 {[%emt 0:01:07]} 23. Bb4 {[%emt 0:00:34]} Nd5 {[%emt 0:02:43]} 24. Bf3 {[%emt 0:00:31]} Ra7 {[%emt 0:01:25]} 25. O-O {[%emt 0:00:49]} Nxb4 {[%emt 0:00:53]} 26. cxb4 {[%emt 0:00:03]} Ra4 {[%emt 0:00:07]} 27. Bc6+ {[%emt 0:07:56]} Ke7 {[%emt 0:00:28]} 28. Bxb5 {[%emt 0:06:08]} Rxb4 {[%emt 0:01:21]} 29. Bc6 {[%emt 0:00:29]} Rxb2 {[%emt 0:00:42]} 30. Rd1 {[%emt 0:04:32]} Rc2 {[%emt 0:03:32]} 31. Be4 {[%emt 0:01:05]} Rc4 {[%emt 0:03:44]} 32. Bf3 {[%emt 0:00:49]} h5 {[%emt 0:06:08]} 33. h3 {[%emt 0:04:16]} f5 {[%emt 0:04:03]} 34. Be2 {[%emt 0:10:24]} Rb4 {[%emt 0:03:02]} 35. Ba6 {[%emt 0:06:34]} Rb6 {[%emt 0:04:55]} 36. Bc8 {[%emt 0:06:30]} Rc6 {[%emt 0:24:09]} 37. Bd7 {[%emt 0:17:36]} Rc7 {[%emt 0:02:33]} 38. Ba4 {[%emt 0:01:18]} Ra7 {[%emt 0:01:50]} 39. Rd4 {[%emt 0:01:00]} Kf6 {[%emt 0:02:25]} 40. h4 {[%emt 0:03:56]} Re7 {[%emt 0:04:04]} 41. f4 {[%emt 0:17:19]} e5 {[%emt 0:00:00]} 42. Rd6+ {[%emt 0:00:00]} Re6 {[%emt 0:00:00]} 43. Rxe6+ {[%emt 0:00:00]} Kxe6 {[%emt 0:00:00]} 44. Be8 {[%emt 0:00:00]} Kf6 {[%emt 0:00:00]} 45. fxe5+ {[%emt 0:00:00]} Kxe5 {[%emt 0:00:00]} 46. Bxg6 {[%emt 0:00:00]} Kf4 {[%emt 0:07:25]} 47. Bxh5 {[%emt 0:00:00]} Kg3 {[%emt 0:00:03]} 48. Bg6 {[%emt 0:00:00]} Kxh4 {[%emt 0:00:07]} 49. Bxf5 {[%emt 0:00:00]} Kg3 {[%emt 0:00:19]} 50. Bd3 {[%emt 0:00:00]} Kg4 {[%emt 0:00:11]} 51. Kf2 {[%emt 0:00:00]} Kf4 {[%emt 0:00:12]} 52. Be2 {[%emt 0:00:00]} 1-0

[Event "GER-ch Youth-U14 2022"]
[Site "Willingen"]
[Date "2022.06.10"]
[Round "8.17"]
[White "Goepfert, Gregor"]
[Black "Winkler, Yonathan"]
[Result "0-1"]
[ECO "B28"]
[WhiteElo "1446"]
[BlackElo "1699"]
[Annotator "NA RC COMBH"]
[PlyCount "112"]
[EventDate "2022.06.05"]
[EventType "swiss"]
[EventRounds "9"]
[EventCountry "GER"]
[SourceTitle "playchess.com"]
[Source "ChessBase"]
[SourceQuality "1"]
[TimeControl "40/4500+30:900+30"]

1. e4 {[%emt 0:00:00]} c5 {[%emt 0:00:00]} 2. Nf3 {[%emt 0:00:00]} a6 {[%emt 0:00:00]} 3. c4 {[%emt 0:00:00]} Nc6 {[%emt 0:00:00]} 4. d4 {[%emt 0:00:00]} cxd4 {[%emt 0:00:00]} 5. Nxd4 {[%emt 0:00:00]} Nf6 {[%emt 0:00:00]} 6. Nc3 {[%emt 0:00:00]} e5 {[%emt 0:00:00]} 7. Nc2 {[%emt 0:00:00]} Bc5 {[%emt 0:00:00]} 8. Be2 {[%emt 0:00:00]} d6 {[%emt 0:00:00]} 9. O-O {[%emt 0:00:00]} Be6 {[%emt 0:00:00]} 10. Be3 {[%emt 0:00:00]} Bxe3 {[%emt 0:00:00]} 11. Nxe3 {[%emt 0:00:00]} O-O {[%emt 0:00:00]} 12. Qd2 {[%emt 0:00:00]} Nd4 {[%emt 0:00:00]} 13. f4 {[%emt 0:05:33]} b5 {[%emt 0:00:39]} 14. f5 {[%emt 0:04:51]} b4 {[%emt 0:20:58]} 15. fxe6 {[%emt 0:04:52]} bxc3 {[%emt 0:00:07]} 16. exf7+ {[%emt 0:01:10]} Rxf7 {[%emt 0:00:07]} 17. bxc3 {[%emt 0:03:07]} Nxe4 {[%emt 0:01:18]} 18. Qd3 {[%emt 0:02:47]} Nxe2+ {[%emt 0:03:07]} 19. Qxe2 {[%emt 0:00:16]} Qd7 {[%emt 0:16:41]} 20. Qd3 {[%emt 0:05:13]} Nf6 {[%emt 0:02:57]} 21. Rad1 {[%emt 0:02:17]} Rd8 {[%emt 0:01:16]} 22. Nd5 {[%emt 0:03:48]} Rdf8 {[%emt 0:09:43]} 23. Nxf6+ {[%emt 0:10:52]} Rxf6 {[%emt 0:00:16]} 24. Qd5+ {[%emt 0:01:13]} Qe6 {[%emt 0:00:25]} 25. Rxf6 {[%emt 0:02:48]} Rxf6 {[%emt 0:00:18]} 26. c5 {[%emt 0:04:02]} dxc5 {[%emt 0:01:54]} 27. Qxc5 {[%emt 0:02:15]} h6 {[%emt 0:03:50]} 28. Qd5 {[%emt 0:01:16]} Kf7 {[%emt 0:03:53]} 29. Qb7+ {[%emt 0:00:45]} Kg6 {[%emt 0:00:51]} 30. Qe4+ {[%emt 0:00:11]} Qf5 {[%emt 0:00:39]} 31. Qxf5+ {[%emt 0:00:39]} Kxf5 {[%emt 0:00:29]} 32. Kf2 {[%emt 0:00:26]} Ke4+ {[%emt 0:00:56]} 33. Ke2 {[%emt 0:00:10]} Rb6 {[%emt 0:00:38]} 34. Rd2 {[%emt 0:00:47]} Rb1 {[%emt 0:00:56]} 35. Rc2 {[%emt 0:02:39]} a5 {[%emt 0:04:01]} 36. c4 {[%emt 0:01:42]} Rb6 {[%emt 0:00:37]} 37. Rd2 {[%emt 0:04:10]} Rc6 {[%emt 0:02:20]} 38. Rd3 {[%emt 0:04:44]} Rxc4 {[%emt 0:00:51]} 39. Ra3 {[%emt 0:00:18]} a4 {[%emt 0:01:37]} 40. Kd2 {[%emt 0:00:45]} Kd4 {[%emt 0:08:34]} 41. Rd3+ {[%emt 0:16:26]} Ke4 {[%emt 0:17:07]} 42. Re3+ {[%emt 0:02:41]} Kd5 {[%emt 0:01:14]} 43. Ra3 {[%emt 0:01:56]} g5 {[%emt 0:00:00]} 44. h3 {[%emt 0:00:00]} e4 {[%emt 0:00:00]} 45. Ke3 {[%emt 0:00:00]} Ke5 {[%emt 0:00:00]} 46. g3 {[%emt 0:00:00]} h5 {[%emt 0:00:00]} 47. Ke2 {[%emt 0:00:00]} Kd4 {[%emt 0:00:00]} 48. Kd2 {[%emt 0:00:00]} Rb4 {[%emt 0:00:00]} 49. Ke2 {[%emt 0:00:00]} g4 {[%emt 0:00:00]} 50. hxg4 {[%emt 0:00:00]} hxg4 {[%emt 0:00:00]} 51. Ke1 {[%emt 0:00:00]} e3 {[%emt 0:00:00]} 52. Ke2 {[%emt 0:00:00]} Rb2+ {[%emt 0:00:00]} 53. Ke1 {[%emt 0:00:00]} Ke4 {[%emt 0:00:00]} 54. Rxa4+ {[%emt 0:00:00]} Kf3 {[%emt 0:00:00]} 55. Rf4+ {[%emt 0:00:00]} Kxg3 {[%emt 0:00:00]} 56. Rf8 {[%emt 0:00:00]} Rxa2 {[%emt 0:00:00]} 0-1

[Event "GER-ch Youth-U14 2022"]
[Site "Willingen"]
[Date "2022.06.10"]
[Round "8.18"]
[White "Schwan, Aaron"]
[Black "Shapiro, Danil"]
[Result "1-0"]
[ECO "B46"]
[WhiteElo "1671"]
[BlackElo "1468"]
[Annotator "NA RC COMBH"]
[PlyCount "95"]
[EventDate "2022.06.05"]
[EventType "swiss"]
[EventRounds "9"]
[EventCountry "GER"]
[SourceTitle "playchess.com"]
[Source "ChessBase"]
[SourceQuality "1"]
[TimeControl "40/4500+30:900+30"]

1. e4 {[%emt 0:00:00]} c5 {[%emt 0:00:00]} 2. Nf3 {[%emt 0:00:00]} e6 {[%emt 0:00:00]} 3. d4 {[%emt 0:00:00]} cxd4 {[%emt 0:00:00]} 4. Nxd4 {[%emt 0:00:00]} Nc6 {[%emt 0:00:00]} 5. Nc3 {[%emt 0:00:00]} a6 {[%emt 0:00:00]} 6. Be3 {[%emt 0:00:00]} Qc7 {[%emt 0:00:00]} 7. g3 {[%emt 0:00:00]} b5 {[%emt 0:00:00]} 8. Bg2 {[%emt 0:00:00]} Bb7 {[%emt 0:00:00]} 9. O-O {[%emt 0:00:00]} Nf6 {[%emt 0:00:00]} 10. Qe2 {[%emt 0:02:01]} Bb4 {[%emt 0:00:00]} 11. a3 {[%emt 0:07:04]} Bxc3 {[%emt 0:00:22]} 12. bxc3 {[%emt 0:00:02]} Nxd4 {[%emt 0:00:46]} 13. cxd4 {[%emt 0:02:39]} Bxe4 {[%emt 0:00:49]} 14. Bxe4 {[%emt 0:02:22]} Nxe4 {[%emt 0:00:13]} 15. Qg4 {[%emt 0:00:44]} d5 {[%emt 0:03:08]} 16. Qxg7 {[%emt 0:01:25]} Ke7 {[%emt 0:00:06]} 17. Bf4 {[%emt 0:01:33]} Qd7 {[%emt 0:04:03]} 18. Be5 {[%emt 0:02:42]} Qe8 {[%emt 0:05:31]} 19. Qxh8 {[%emt 0:01:22]} Qxh8 {[%emt 0:00:49]} 20. Bxh8 {[%emt 0:00:02]} Rxh8 {[%emt 0:00:06]} 21. a4 {[%emt 0:01:27]} b4 {[%emt 0:00:09]} 22. a5 {[%emt 0:00:16]} Nc3 {[%emt 0:00:28]} 23. Rfe1 {[%emt 0:04:55]} Rc8 {[%emt 0:00:15]} 24. Re3 {[%emt 0:21:00]} Rc4 {[%emt 0:00:10]} 25. Kf1 {[%emt 0:07:15]} Rxd4 {[%emt 0:01:14]} 26. Rc1 {[%emt 0:09:38]} f6 {[%emt 0:11:47]} 27. Rd3 {[%emt 0:03:13]} Rxd3 {[%emt 0:01:37]} 28. cxd3 {[%emt 0:00:10]} Kd6 {[%emt 0:00:08]} 29. Ke1 {[%emt 0:01:35]} d4 {[%emt 0:00:37]} 30. Kd2 {[%emt 0:00:40]} b3 {[%emt 0:04:03]} 31. Rxc3 {[%emt 0:00:28]} dxc3+ {[%emt 0:00:04]} 32. Kxc3 {[%emt 0:00:02]} b2 {[%emt 0:02:34]} 33. Kxb2 {[%emt 0:00:01]} Kc5 {[%emt 0:00:10]} 34. f4 {[%emt 0:01:47]} h5 {[%emt 0:07:29]} 35. f5 {[%emt 0:06:08]} e5 {[%emt 0:02:11]} 36. Kc3 {[%emt 0:00:37]} Kd5 {[%emt 0:02:27]} 37. h3 {[%emt 0:02:01]} Kc5 {[%emt 0:03:12]} 38. g4 {[%emt 0:00:40]} hxg4 {[%emt 0:00:05]} 39. hxg4 {[%emt 0:00:00]} Kd5 {[%emt 0:00:55]} 40. Kb4 {[%emt 0:02:47]} Kd6 {[%emt 0:05:54]} 41. Kc4 {[%emt 0:18:59]} Kc6 {[%emt 0:15:09]} 42. d4 {[%emt 0:00:57]} exd4 {[%emt 0:02:08]} 43. Kxd4 {[%emt 0:00:01]} Kd6 {[%emt 0:00:11]} 44. Ke4 {[%emt 0:00:31]} Ke7 {[%emt 0:00:13]} 45. Kf4 {[%emt 0:00:59]} Kf7 {[%emt 0:00:10]} 46. g5 {[%emt 0:00:21]} fxg5+ {[%emt 0:00:09]} 47. Kxg5 {[%emt 0:00:02]} Kg7 {[%emt 0:00:11]} 48. Kf4 {[%emt 0:00:34]} 1-0

[Event "GER-ch Youth-U14 2022"]
[Site "Willingen"]
[Date "2022.06.10"]
[Round "8.20"]
[White "Linnemann, Caspar"]
[Black "Miller, Elias"]
[Result "1/2-1/2"]
[ECO "B15"]
[WhiteElo "1720"]
[BlackElo "1548"]
[Annotator "NA RC COMBH"]
[PlyCount "106"]
[EventDate "2022.06.05"]
[EventType "swiss"]
[EventRounds "9"]
[EventCountry "GER"]
[SourceTitle "playchess.com"]
[Source "ChessBase"]
[SourceQuality "1"]
[TimeControl "40/4500+30:900+30"]

1. e4 {[%emt 0:00:00]} c6 {[%emt 0:00:00]} 2. d4 {[%emt 0:00:00]} d5 {[%emt 0:00:00]} 3. Nd2 {[%emt 0:00:00]} dxe4 {[%emt 0:00:00]} 4. Nxe4 {[%emt 0:00:00]} Nf6 {[%emt 0:00:00]} 5. Nxf6+ {[%emt 0:00:00]} exf6 {[%emt 0:00:00]} 6. Be3 {[%emt 0:00:00]} Qb6 {[%emt 0:00:00]} 7. Qc1 {[%emt 0:00:00]} c5 {[%emt 0:00:00]} 8. c3 {[%emt 0:01:21]} Nc6 {[%emt 0:00:00]} 9. Nf3 {[%emt 0:06:07]} Bd6 {[%emt 0:00:00]} 10. Be2 {[%emt 0:02:46]} O-O {[%emt 0:00:00]} 11. h3 {[%emt 0:08:42]} Re8 {[%emt 0:01:02]} 12. Qd2 {[%emt 0:09:57]} Bf5 {[%emt 0:05:49]} 13. O-O {[%emt 0:04:17]} Rad8 {[%emt 0:02:36]} 14. d5 {[%emt 0:02:53]} Ne5 {[%emt 0:10:24]} 15. b3 {[%emt 0:03:57]} Qc7 {[%emt 0:05:58]} 16. Nh4 {[%emt 0:09:03]} Bd7 {[%emt 0:01:54]} 17. f4 {[%emt 0:01:37]} Ng6 {[%emt 0:02:08]} 18. Nxg6 {[%emt 0:00:40]} hxg6 {[%emt 0:01:52]} 19. c4 {[%emt 0:03:27]} Re7 {[%emt 0:02:12]} 20. Rae1 {[%emt 0:04:12]} Rde8 {[%emt 0:01:04]} 21. Bd3 {[%emt 0:00:48]} Kh7 {[%emt 0:05:26]} 22. Qf2 {[%emt 0:01:43]} Qa5 {[%emt 0:07:26]} 23. Bb1 {[%emt 0:08:12]} Qc3 {[%emt 0:16:42]} 24. Bd2 {[%emt 0:03:27]} Qb2 {[%emt 0:00:43]} 25. Rxe7 {[%emt 0:00:50]} Rxe7 {[%emt 0:00:22]} 26. Be3 {[%emt 0:01:18]} Qa3 {[%emt 0:04:08]} 27. Re1 {[%emt 0:01:51]} a5 {[%emt 0:08:54]} 28. Bc1 {[%emt 0:01:18]} Rxe1+ {[%emt 0:00:42]} 29. Qxe1 {[%emt 0:00:09]} Qb4 {[%emt 0:00:08]} 30. Qxb4 {[%emt 0:00:38]} axb4 {[%emt 0:00:43]} 31. Kf2 {[%emt 0:01:05]} Kg8 {[%emt 0:01:14]} 32. Ke3 {[%emt 0:00:53]} f5 {[%emt 0:00:53]} 33. Bb2 {[%emt 0:01:25]} f6 {[%emt 0:00:50]} 34. Kf3 {[%emt 0:01:18]} g5 {[%emt 0:01:06]} 35. Bc1 {[%emt 0:00:53]} Bxf4 {[%emt 0:02:50]} 36. Bxf4 {[%emt 0:00:31]} gxf4 {[%emt 0:00:11]} 37. Kxf4 {[%emt 0:00:30]} g5+ {[%emt 0:00:20]} 38. Kf3 {[%emt 0:01:09]} Kf7 {[%emt 0:01:36]} 39. g3 {[%emt 0:00:43]} b6 {[%emt 0:00:58]} 40. Bc2 {[%emt 0:06:47]} Ke7 {[%emt 0:02:07]} 41. h4 {[%emt 0:00:00]} Kd6 {[%emt 0:00:00]} 42. Bb1 {[%emt 0:00:00]} Ke7 {[%emt 0:00:00]} 43. Bd3 {[%emt 0:00:25]} Kd6 {[%emt 0:00:00]} 44. Ke3 {[%emt 0:05:04]} Ke7 {[%emt 0:00:00]} 45. Be2 {[%emt 0:00:56]} Kd6 {[%emt 0:01:28]} 46. Bh5 {[%emt 0:01:00]} f4+ {[%emt 0:10:33]} 47. gxf4 {[%emt 0:01:05]} gxh4 {[%emt 0:00:22]} 48. Kf2 {[%emt 0:02:52]} b5 {[%emt 0:02:28]} 49. Bg6 {[%emt 0:02:47]} bxc4 {[%emt 0:01:43]} 50. bxc4 {[%emt 0:00:18]} Ba4 {[%emt 0:03:06]} 51. Bd3 {[%emt 0:01:15]} Bd1 {[%emt 0:01:38]} 52. Kg2 {[%emt 0:02:19]} Bg4 {[%emt 0:00:30]} 53. Kf2 {[%emt 0:01:14]} Bd1 {[%emt 0:00:41]} 1/2-1/2

[Event "GER-ch Youth-U14 2022"]
[Site "Willingen"]
[Date "2022.06.10"]
[Round "8.21"]
[White "Goldinov, Daniel"]
[Black "Detjen, Mattes"]
[Result "1-0"]
[ECO "C47"]
[WhiteElo "1626"]
[BlackElo "1098"]
[Annotator "NA RC COMBH"]
[PlyCount "81"]
[EventDate "2022.06.05"]
[EventType "swiss"]
[EventRounds "9"]
[EventCountry "GER"]
[SourceTitle "playchess.com"]
[Source "ChessBase"]
[SourceQuality "1"]
[TimeControl "40/4500+30:900+30"]

1. e4 {[%emt 0:00:00]} e5 {[%emt 0:00:00]} 2. Nc3 {[%emt 0:00:00]} Nc6 {[%emt 0:00:00]} 3. Bc4 {[%emt 0:00:00]} Nf6 {[%emt 0:00:00]} 4. Nf3 {[%emt 0:00:00]} Nxe4 {[%emt 0:00:00]} 5. Nxe4 {[%emt 0:00:00]} d5 {[%emt 0:00:00]} 6. Bb5 {[%emt 0:00:00]} dxe4 {[%emt 0:00:00]} 7. Nxe5 {[%emt 0:00:00]} Bd7 {[%emt 0:00:00]} 8. Bxc6 {[%emt 0:00:07]} Bxc6 {[%emt 0:00:00]} 9. Qe2 {[%emt 0:01:59]} Qe7 {[%emt 0:00:00]} 10. Nxc6 {[%emt 0:03:53]} bxc6 {[%emt 0:00:00]} 11. Qc4 {[%emt 0:01:30]} c5 {[%emt 0:03:03]} 12. Qb5+ {[%emt 0:02:17]} Qd7 {[%emt 0:05:24]} 13. Qb7 {[%emt 0:01:02]} Rd8 {[%emt 0:07:17]} 14. Qxe4+ {[%emt 0:01:28]} Qe7 {[%emt 0:01:58]} 15. Qxe7+ {[%emt 0:01:20]} Bxe7 {[%emt 0:00:44]} 16. d3 {[%emt 0:00:51]} Bd6 {[%emt 0:01:31]} 17. O-O {[%emt 0:01:24]} Kd7 {[%emt 0:01:45]} 18. Bd2 {[%emt 0:01:28]} Rhe8 {[%emt 0:02:36]} 19. Rfe1 {[%emt 0:00:46]} Rxe1+ {[%emt 0:00:40]} 20. Rxe1 {[%emt 0:00:14]} Re8 {[%emt 0:00:15]} 21. Rxe8 {[%emt 0:00:22]} Kxe8 {[%emt 0:00:05]} 22. g3 {[%emt 0:00:55]} f5 {[%emt 0:01:40]} 23. Bc3 {[%emt 0:00:26]} g5 {[%emt 0:02:34]} 24. Bf6 {[%emt 0:00:55]} g4 {[%emt 0:05:51]} 25. Kg2 {[%emt 0:04:53]} Kf7 {[%emt 0:00:41]} 26. Bc3 {[%emt 0:00:55]} h5 {[%emt 0:00:49]} 27. f4 {[%emt 0:02:03]} Ke6 {[%emt 0:01:16]} 28. Kf2 {[%emt 0:00:45]} Kd5 {[%emt 0:01:58]} 29. b3 {[%emt 0:01:25]} a6 {[%emt 0:01:04]} 30. Ke3 {[%emt 0:02:18]} c6 {[%emt 0:01:48]} 31. Bg7 {[%emt 0:02:35]} Bc7 {[%emt 0:04:00]} 32. c4+ {[%emt 0:03:18]} Kd6 {[%emt 0:00:53]} 33. Bf8+ {[%emt 0:01:12]} Ke6 {[%emt 0:01:43]} 34. Bxc5 {[%emt 0:00:33]} a5 {[%emt 0:00:45]} 35. a3 {[%emt 0:00:56]} Bd8 {[%emt 0:06:38]} 36. d4 {[%emt 0:03:34]} Bc7 {[%emt 0:02:01]} 37. Kd3 {[%emt 0:00:33]} Bd8 {[%emt 0:10:29]} 38. b4 {[%emt 0:02:11]} axb4 {[%emt 0:00:22]} 39. Bxb4 {[%emt 0:00:42]} Bb6 {[%emt 0:00:49]} 40. a4 {[%emt 0:00:52]} Ba7 {[%emt 0:00:39]} 41. Bc5 {[%emt 0:15:49]} 1-0

[Event "GER-ch Youth-U14 2022"]
[Site "Willingen"]
[Date "2022.06.10"]
[Round "8.22"]
[White "Sinka, Silas"]
[Black "Weber, Nikita"]
[Result "1-0"]
[ECO "A06"]
[WhiteElo "1386"]
[BlackElo "1264"]
[Annotator "NA RC COMBH"]
[PlyCount "122"]
[EventDate "2022.06.05"]
[EventType "swiss"]
[EventRounds "9"]
[EventCountry "GER"]
[SourceTitle "playchess.com"]
[Source "ChessBase"]
[SourceQuality "1"]
[TimeControl "40/4500+30:900+30"]

1. Nf3 {[%emt 0:00:00]} d5 {[%emt 0:00:00]} 2. g3 {[%emt 0:00:00]} Nf6 {[%emt 0:00:00]} 3. Bg2 {[%emt 0:00:00]} e6 {[%emt 0:00:00]} 4. O-O {[%emt 0:00:00]} Bd6 {[%emt 0:00:00]} 5. d4 {[%emt 0:00:00]} O-O {[%emt 0:00:00]} 6. Nbd2 {[%emt 0:00:00]} Nbd7 {[%emt 0:00:00]} 7. c4 {[%emt 0:00:00]} c6 {[%emt 0:00:00]} 8. b3 {[%emt 0:00:00]} e5 {[%emt 0:00:00]} 9. dxe5 {[%emt 0:00:00]} Nxe5 {[%emt 0:00:00]} 10. cxd5 {[%emt 0:00:00]} Nxd5 {[%emt 0:00:00]} 11. Bb2 {[%emt 0:00:00]} Qe7 {[%emt 0:05:38]} 12. Ne4 {[%emt 0:02:12]} Nxf3+ {[%emt 0:03:56]} 13. Bxf3 {[%emt 0:00:32]} Bh3 {[%emt 0:01:51]} 14. Nxd6 {[%emt 0:05:31]} Qxd6 {[%emt 0:01:20]} 15. Qd4 {[%emt 0:00:42]} f6 {[%emt 0:01:11]} 16. Rfd1 {[%emt 0:00:13]} Qe7 {[%emt 0:02:49]} 17. Bxd5+ {[%emt 0:05:26]} cxd5 {[%emt 0:01:05]} 18. Qxd5+ {[%emt 0:00:12]} Kh8 {[%emt 0:00:08]} 19. Qh5 {[%emt 0:21:05]} Be6 {[%emt 0:05:04]} 20. Rd4 {[%emt 0:07:20]} Rac8 {[%emt 0:02:08]} 21. a4 {[%emt 0:15:16]} Bxb3 {[%emt 0:02:20]} 22. Ba3 {[%emt 0:05:48]} Qe5 {[%emt 0:02:06]} 23. Qxe5 {[%emt 0:03:19]} fxe5 {[%emt 0:00:01]} 24. Rb4 {[%emt 0:01:47]} Bd5 {[%emt 0:01:47]} 25. Rb5 {[%emt 0:05:05]} Rfd8 {[%emt 0:01:22]} 26. Be7 {[%emt 0:03:00]} Rd7 {[%emt 0:00:56]} 27. Rd1 {[%emt 0:00:18]} Rxe7 {[%emt 0:00:54]} 28. Rdxd5 {[%emt 0:00:09]} Rce8 {[%emt 0:00:35]} 29. Kg2 {[%emt 0:00:57]} e4 {[%emt 0:00:15]} 30. Rd4 {[%emt 0:02:02]} g6 {[%emt 0:00:46]} 31. Rdb4 {[%emt 0:01:37]} b6 {[%emt 0:00:21]} 32. a5 {[%emt 0:00:38]} bxa5 {[%emt 0:00:15]} 33. Rxa5 {[%emt 0:00:08]} Kg7 {[%emt 0:00:30]} 34. Rba4 {[%emt 0:00:15]} Ra8 {[%emt 0:00:36]} 35. Kh3 {[%emt 0:01:02]} h5 {[%emt 0:00:23]} 36. g4 {[%emt 0:01:25]} hxg4+ {[%emt 0:01:10]} 37. Kxg4 {[%emt 0:00:08]} Rf7 {[%emt 0:01:47]} 38. Kg3 {[%emt 0:00:05]} Re7 {[%emt 0:00:33]} 39. Kf4 {[%emt 0:00:09]} e3 {[%emt 0:00:19]} 40. f3 {[%emt 0:01:04]} Rf8+ {[%emt 0:00:01]} 41. Kg3 {[%emt 0:15:22]} Rff7 {[%emt 0:16:01]} 42. f4 {[%emt 0:00:12]} Kh6 {[%emt 0:01:33]} 43. h4 {[%emt 0:00:06]} Kg7 {[%emt 0:00:41]} 44. Kf3 {[%emt 0:00:11]} Kh6 {[%emt 0:00:17]} 45. Ra3 {[%emt 0:00:08]} Rc7 {[%emt 0:02:32]} 46. Rxe3 {[%emt 0:03:30]} Rb7 {[%emt 0:01:08]} 47. Rea3 {[%emt 0:02:51]} Rb1 {[%emt 0:01:29]} 48. Ra1 {[%emt 0:00:00]} Rbb7 {[%emt 0:00:00]} 49. e3 {[%emt 0:00:00]} Rbc7 {[%emt 0:00:00]} 50. Rg1 {[%emt 0:00:00]} Rc3 {[%emt 0:00:00]} 51. Ra6 {[%emt 0:00:00]} Rg7 {[%emt 0:00:00]} 52. h5 {[%emt 0:00:00]} Rc5 {[%emt 0:00:00]} 53. hxg6 {[%emt 0:00:00]} Rh5 {[%emt 0:00:00]} 54. Ke4 {[%emt 0:00:00]} Re7+ {[%emt 0:00:00]} 55. Kf3 {[%emt 0:00:00]} Rg7 {[%emt 0:00:00]} 56. e4 {[%emt 0:00:00]} Rh3+ {[%emt 0:00:00]} 57. Rg3 {[%emt 0:00:00]} Rh1 {[%emt 0:00:00]} 58. Kg2 {[%emt 0:00:00]} Rh4 {[%emt 0:00:00]} 59. Kf3 {[%emt 0:00:37]} Rh1 {[%emt 0:00:00]} 60. f5 {[%emt 0:02:44]} Kh5 {[%emt 0:00:00]} 61. Kg2 {[%emt 0:04:32]} Rb1 {[%emt 0:00:00]} 1-0